lending/lending_fUSD_20240711
["ID","MTS","AMOUNT","RATE_DAILY","PERIOD"]
[331707113,1720671304032,1500.0,0.00012302,120]
[331707114,1720671313331,991.5117,0.00011199,2]
[331707115,1720671418162,3000.0,0.00027,120]
[331707116,1720671458937,254.17950229,0.00011199,2]
[331707117,1720671477019,331.0132403,0.00011199,2]
[331707118,1720671478510,297.19218126,0.00011199,2]
[331707119,1720671495944,200.12738973,0.00011199,2]
[331707120,1720671745044,155.35663432,0.00011199,2]
[331707126,1720671836614,413.9,0.00010512,2]
[331707127,1720671979626,400.44480684,0.00011199,2]
[331707136,1720672059967,358.501514,0.00011997,2]
[331707138,1720672106079,447.8202574,0.00011199,2]
[331707139,1720672136308,524.02571031,0.00011199,2]
[331707140,1720672166090,10543.78744584,0.00011199,2]
[331707141,1720672170319,568.55,0.00010959,2]
[331707143,1720672194340,2390.04448545,0.00011199,2]
[331707144,1720672207328,338640.30516045,0.00011199,2]
[331707158,1720672233453,-582.0,0.00012032,2]
[331707159,1720672233463,-272.8607206,0.00012058,2]
[331707160,1720672233475,-227.1392794,0.00012058,2]
[331707161,1720672233485,-340.21,0.00012064,2]
[331707162,1720672233495,-196.74437875,0.00012384,2]
[331707163,1720672233505,-404.96,0.00012392,2]
[331707164,1720672233515,-6939.24696957,0.00012396,2]
[331707165,1720672233527,-543.83019264,0.00012396,2]
[331707166,1720672233539,-552.71216,0.00012396,2]
[331707167,1720672233551,-1136.728918,0.00012396,2]
[331707168,1720672233562,-4016.59568407,0.00012396,2]
[331707169,1720672233574,-10700.88607572,0.00012396,2]
[331707170,1720672233583,-250.0,0.00012435,2]
[331707171,1720672233594,-302.51568226,0.00012465,2]
[331707172,1720672233606,-176.88431774,0.00012465,2]
[331707173,1720672233615,-150.99,0.00012465,2]
[331707174,1720672233625,-220.12798638,0.00012479,2]
[331707175,1720672233638,-29.87201362,0.00012479,2]
[331707176,1720672233647,-234.65,0.00012479,2]
[331707177,1720672233657,-200.0,0.00012483,2]
[331707178,1720672233666,-711.29,0.00012493,2]
[331707179,1720672233675,-479.4,0.00012499,2]
[331707180,1720672233685,-158.6,0.00012505,2]
[331707181,1720672233694,-170.78,0.00012522,2]
[331707182,1720672233703,-1000.0,0.00012524,2]
[331707183,1720672233712,-479.4,0.00012533,2]
[331707184,1720672233721,-479.4,0.00012567,2]
[331707185,1720672233731,-150.0,0.000126,2]
[331707186,1720672233740,-479.4,0.00012601,2]
[331707187,1720672233750,-479.4,0.00012636,2]
[331707188,1720672233759,-479.4,0.0001267,2]
[331707189,1720672233768,-479.4,0.00012704,2]
[331707190,1720672233777,-479.4,0.00012738,2]
[331707191,1720672233787,-150.0,0.00012771,2]
[331707192,1720672233796,-479.4,0.00012772,2]
[331707193,1720672233806,-379.21824294,0.00012776,2]
[331707194,1720672238142,1368.16531357,0.00011199,2]
[331707204,1720672238330,-34.68175706,0.00012776,2]
[331707205,1720672238340,-479.4,0.00012806,2]
[331707206,1720672238350,-479.4,0.00012841,2]
[331707207,1720672238360,-320.8403244,0.00012875,2]
[331707211,1720672238393,-158.5596756,0.00012875,2]
[331707213,1720672238402,-274.72409016,0.00012909,2]
[331707215,1720672238414,-204.67590984,0.00012909,2]
[331707216,1720672238424,-479.4,0.00012943,2]
[331707218,1720672238433,-479.4,0.00012977,2]
[331707220,1720672238443,-300.0,0.00013,2]
[331707222,1720672238452,-1250.0,0.00013,2]
[331707223,1720672238461,-479.4,0.00013012,2]
[331707225,1720672238470,-479.4,0.00013046,2]
[331707227,1720672238481,-499.99,0.00013066,2]
[331707228,1720672238490,-505.67353575,0.00013079,2]
[331707229,1720672238499,-479.4,0.0001308,2]
[331707230,1720672238509,-479.4,0.00013114,2]
[331707231,1720672238519,-371.02794291,0.00013128,2]
[331707232,1720672238528,-1480.46188607,0.00013128,2]
[331707233,1720672238540,-3074.8,0.00013128,2]
[331707234,1720672238551,-948.90215079,0.00013128,2]
[331707235,1720672238564,-795.2682055,0.00013128,2]
[331707236,1720672238575,-1007.38297438,0.00013128,2]
[331707237,1720672238586,-284.51111494,0.00013128,2]
[331707238,1720672238598,-7903.3429348,0.00013128,2]
[331707239,1720672238607,-2087.6570652,0.00013463,7]
[331707240,1720672238622,-7912.3429348,0.00013463,7]
[331707241,1720672238632,-384.20539693,0.00013472,2]
[331707242,1720672238643,-3394.25146719,0.00013472,2]
[331707243,1720672238652,-5634.51897741,0.00013472,2]
[331707244,1720672238662,-188.04824218,0.00013516,2]
[331707245,1720672238671,-1079.82956692,0.00013516,2]
[331707246,1720672238682,-180.42,0.00013521,2]
[331707248,1720672238692,-155.0,0.00013543,2]
[331707250,1720672238703,-237.25709888,0.00013543,2]
[331707252,1720672238713,-789.83801182,0.00013543,2]
[331707254,1720672238723,-6710.19062126,0.00013574,2]
[331707256,1720672238732,-10525.28715581,0.00013574,2]
[331707258,1720672238741,-200.0,0.00013699,2]
[331707260,1720672238751,-258.84,0.00013699,2]
[331707262,1720672238762,-1608.91,0.00013699,2]
[331707264,1720672238772,-2751.0,0.00013699,2]
[331707266,1720672238781,-250.0,0.00013699,2]
[331707268,1720672238791,-449.0,0.00013719,2]
[331707270,1720672238801,-12775.20479459,0.00013736,2]
[331707272,1720672238810,-1287.48512797,0.00013759,2]
[331707274,1720672238819,-745.0577,0.000138,2]
[331707276,1720672238829,-326.21886683,0.000138,2]
[331707278,1720672238838,-546.12719248,0.000138,2]
[331707280,1720672238847,-162.93456095,0.00013849,2]
[331707282,1720672238857,-35292.32334692,0.0001386,2]
[331707283,1720672238867,-255.0,0.0001387,2]
[331707284,1720672238876,-2067.94323,0.0001388,2]
[331707285,1720672238886,-200.0,0.00013888,2]
[331707286,1720672238895,-649.33683349,0.00013889,2]
[331707287,1720672238904,-170.56655424,0.00013889,2]
[331707288,1720672238914,-529.25177253,0.00013889,2]
[331707289,1720672238923,-1206.25,0.00013899,2]
[331707290,1720672238933,-500.0,0.00013899,2]
[331707291,1720672238944,-891.27,0.00013899,2]
[331707292,1720672238954,-713.16,0.00013899,2]
[331707293,1720672238964,-252.69643999,0.00013899,2]
[331707294,1720672238975,-500.0,0.00013899,2]
[331707295,1720672238984,-456.1259615,0.00013899,2]
[331707297,1720672238994,-209.25563205,0.00013899,2]
[331707299,1720672239004,-474.86366289,0.00013899,2]
[331707300,1720672239013,-897.4815,0.000139,2]
[331707301,1720672239023,-3739.7418,0.000139,2]
[331707302,1720672239033,-128645.6397,0.000139,2]
[331707303,1720672239042,-1610.63649224,0.000139,2]
[331707304,1720672239052,-13542.8027,0.000139,2]
[331707305,1720672239063,-912.2249,0.000139,2]
[331707306,1720672239073,-157.44470744,0.000139,2]
[331707307,1720672239082,-7303.2895,0.000139,2]
[331707308,1720672239092,-486.20924216,0.000139,2]
[331707309,1720672239102,-419.26183658,0.000139,2]
[331707310,1720672239112,-12420.94814067,0.000139,2]
[331707311,1720672239122,-209.25563204,0.000139,2]
[331707312,1720672239132,-340.8,0.00013906,2]
[331707313,1720672239144,-1206.25,0.00013954,2]
[331707314,1720672239155,-500.0,0.00013954,2]
[331707315,1720672239166,-891.27,0.00013954,2]
[331707316,1720672239176,-713.16,0.00013954,2]
[331707317,1720672239186,-500.0,0.00013954,2]
[331707318,1720672239195,-2067.94322,0.0001396,2]
[331707319,1720672239205,-155.72196748,0.00013989,2]
[331707320,1720672239215,-500.0,0.00013992,2]
[331707321,1720672239226,-500.0,0.00013992,2]
[331707322,1720672239235,-455.01608012,0.00013992,2]
[331707323,1720672239246,-42726.3346579,0.00013993,2]
[331707324,1720672239258,-1225.93376925,0.00013993,2]
[331707325,1720672239269,-902.15263318,0.00013993,2]
[331707326,1720672239281,-2630.44510527,0.00013993,2]
[331707327,1720672239290,-62.86993045,0.00013999,2]
[331707328,1720672239302,-283.75388085,0.00013999,2]
[331707329,1720672239312,-500.0,0.00013999,2]
[331707330,1720672239321,-296.46959226,0.00013999,2]
[331707331,1720672239331,-419.77652689,0.00013999,2]
[331707332,1720672239343,-80.22347311,0.00013999,2]
[331707333,1720672239352,-177.59890373,0.00013999,2]
[331707334,1720672239363,-191.2329511,0.00013999,2]
[331707335,1720672239373,-616.02636014,0.00013999,2]
[331707336,1720672239382,-654.37201286,0.00013999,2]
[331707337,1720672239391,-458.56830439,0.00013999,2]
[331707338,1720672239401,-1197.0,0.00013999,2]
[331707339,1720672239411,-188.75817517,0.00013999,2]
[331707340,1720672239421,-180.14219634,0.00013999,2]
[331707341,1720672239443,-65.24957503,0.00013999,2]
[331707342,1720672239452,-444.0,0.00013999,2]
[331707343,1720672239461,-336.32525094,0.00014,2]
[331707344,1720672239478,-7102.99562553,0.00014,2]
[331707345,1720672239644,-3065.56296574,0.00014,2]
[331707346,1720672239656,-45423.36810914,0.00014,2]
[331707347,1720672240526,-584.01162162,0.00013849,2]
[331707348,1720672240536,-84384.34231553,0.00014,2]
[331707349,1720672240545,-2213456.85384388,0.00014,2]
[331707350,1720672240555,-2000.0,0.00014,2]
[331707351,1720672240564,-2889761.37378182,0.00014,2]
[331707352,1720672240574,-200.0,0.00014,2]
[331707353,1720672240583,-200.0,0.00014,2]
[331707354,1720672240593,-200.0,0.00014,2]
[331707355,1720672240603,-200.0,0.00014,2]
[331707356,1720672240612,-200.0,0.00014,2]
[331707357,1720672240622,-214.0,0.00014,2]
[331707358,1720672240631,-200.0,0.00014,2]
[331707359,1720672240641,-200.0,0.00014,2]
[331707360,1720672240651,-200.0,0.00014,2]
[331707361,1720672240660,-214.0,0.00014,2]
[331707362,1720672240670,-200.0,0.00014,2]
[331707363,1720672240679,-214.0,0.00014,2]
[331707364,1720672240688,-200.0,0.00014,2]
[331707365,1720672240706,-214.0,0.00014,2]
[331707366,1720672240717,-214.0,0.00014,2]
[331707367,1720672240727,-214.0,0.00014,2]
[331707368,1720672240737,-214.0,0.00014,2]
[331707369,1720672240747,-214.0,0.00014,2]
[331707370,1720672240756,-214.0,0.00014,2]
[331707371,1720672240766,-214.0,0.00014,2]
[331707372,1720672240776,-214.0,0.00014,2]
[331707373,1720672240785,-214.0,0.00014,2]
[331707374,1720672240795,-2503.61,0.00014,2]
[331707375,1720672240805,-2000.0,0.00014,2]
[331707376,1720672240815,-2726406.56546585,0.00014,2]
[331707377,1720672240829,-72588.39459769,0.00014,2]
[331707378,1720672240842,-21513.17267246,0.00014,2]
[331707379,1720672240854,-881.17459195,0.00014,2]
[331707380,1720672240870,-268.03773527,0.00014,2]
[331707416,1720672243561,-343.71045017,0.00013719,2]
[331707418,1720672243573,-727.28954983,0.00013719,2]
[331707419,1720672243582,-451.16814505,0.000139,2]
[331707420,1720672243592,-426.89410888,0.00013989,2]
[331707421,1720672243624,-189.13225126,0.00013989,2]
[331707422,1720672243634,-976.26538567,0.00014,2]
[331707423,1720672243647,-486.94978314,0.00014,2]
[331707424,1720672243659,-842.74322516,0.00014,2]
[331707425,1720672243683,-1064.00008,0.00014,2]
[331707426,1720672243695,-324.95567764,0.00014,2]
[331707427,1720672243798,-1864.28178793,0.00014,2]
[331707428,1720672243810,-1220.0,0.00014,2]
[331707458,1720672246612,-40451.97495834,0.00014,2]
[331707460,1720672246625,-2379.07851215,0.00014,2]
[331707462,1720672246637,-3726.05691991,0.00014,2]
[331707465,1720672246652,-2833.19790217,0.00014,2]
[331707468,1720672246671,-905.86788525,0.00014,2]
[331707474,1720672246793,-3823.05,0.00014,2]
[331707475,1720672246808,-1349.08580306,0.00014,2]
[331707476,1720672246831,-584.82021014,0.00014,2]
[331707482,1720672329211,409.23229485,0.00011277,2]
[331707483,1720672363701,3249.40471524,0.00011277,2]
[331707484,1720672368729,390.06,0.00011243,2]
[331707485,1720672395013,3000.0,0.00025645,120]
[331707486,1720672395421,2748.114284,0.00026999,120]
[331707487,1720672530177,1253.30119177,0.00011199,2]
[331707488,1720672556463,2201.79322894,0.00011199,2]
[331707491,1720672630876,155.0,0.00011199,2]
[331707492,1720672637549,253.54913696,0.00011199,2]
[331707493,1720672659726,328.70938017,0.00011199,2]
[331707494,1720672660245,529.01637071,0.00011199,2]
[331707495,1720672675152,398.82991952,0.00011199,2]
[331707496,1720672678993,156.76606447,0.00011199,2]
[331707497,1720672688481,158.93343224,0.00011199,2]
[331707498,1720672692866,216.67569474,0.00011199,2]
[331707499,1720672713619,197.92488462,0.00011199,2]
[331707501,1720672773553,202.25757491,0.00011199,2]
[331707504,1720673007557,369.13157018,0.00011199,2]
[331707505,1720673030640,197.54744095,0.00011199,2]
[331707506,1720673042879,160.12041517,0.00011199,2]
[331707507,1720673048259,191.6916045,0.00011199,2]
[331707508,1720673070384,370.55,0.00011054,2]
[331707509,1720673085696,158.43808988,0.00011199,2]
[331707510,1720673091959,432.65952137,0.00011199,2]
[331707532,1720673431574,-413.21120921,0.00012273,2]
[331707533,1720673431584,-153.51463278,0.000126,2]
[331707534,1720673431593,-180.43,0.00012904,2]
[331707535,1720673431603,-250.0,0.00012955,2]
[331707536,1720673431611,-1000.0,0.00012963,2]
[331707537,1720673431620,-117.56226422,0.00013005,2]
[331707538,1720673431636,-110.73773578,0.00013005,2]
[331707539,1720673431644,-354.01641198,0.00013062,2]
[331707540,1720673431655,-4.48704902,0.00013062,2]
[331707541,1720673431664,-224.31037103,0.00013128,2]
[331707542,1720673431673,-153.5200945,0.00013318,2]
[331707543,1720673431691,-217.0299055,0.00013318,2]
[331707544,1720673431701,-178.26,0.00013476,2]
[331707545,1720673431710,-150.0,0.00013507,2]
[331707546,1720673431719,-1369.55606799,0.00013574,2]
[331707547,1720673431727,-500.0,0.00013698,2]
[331707548,1720673431736,-500.0,0.00013698,2]
[331707549,1720673431745,-206.24,0.00013699,2]
[331707550,1720673431754,-250.0,0.00013699,2]
[331707551,1720673431762,-500.0,0.00013753,2]
[331707552,1720673431771,-179.91630133,0.00013753,2]
[331707553,1720673431782,-320.08369867,0.00013753,2]
[331707554,1720673431791,-300.0,0.00013807,2]
[331707555,1720673431800,-186.6922877,0.00013808,2]
[331707556,1720673431811,-313.3077123,0.00013808,2]
[331707557,1720673431820,-500.0,0.00013808,2]
[331707558,1720673431831,-500.0,0.00013863,2]
[331707559,1720673431841,-520.5,0.00013863,2]
[331707560,1720673431850,-166.1922877,0.00013888,2]
[331707561,1720673431864,-333.8077123,0.00013888,2]
[331707562,1720673431875,-220.48,0.0001389,2]
[331707563,1720673431884,-150.0,0.00013899,2]
[331707564,1720673431895,-5012.70772474,0.000139,2]
[331707565,1720673431906,-562.4996314,0.000139,2]
[331707566,1720673431917,-546.53616094,0.000139,2]
[331707567,1720673431928,-937.56938161,0.000139,2]
[331707568,1720673431941,-440.68710131,0.000139,2]
[331707569,1720673431952,-326.21886683,0.000139,2]
[331707570,1720673431963,-150.0,0.00013912,2]
[331707571,1720673431972,-150.0,0.00013912,2]
[331707572,1720673431983,-150.0,0.00013912,2]
[331707573,1720673431994,-150.0,0.00013912,2]
[331707574,1720673432004,-150.0,0.00013912,2]
[331707575,1720673432013,-150.81,0.00013912,2]
[331707576,1720673432023,-150.0,0.00013912,2]
[331707577,1720673432034,-300.56,0.00013912,2]
[331707578,1720673432045,-229.55466731,0.00013917,2]
[331707579,1720673432056,-270.44533269,0.00013917,2]
[331707580,1720673432065,-500.0,0.00013972,2]
[331707581,1720673432074,-368.91,0.0001399,2]
[331707582,1720673432084,-368.91,0.0001399,2]
[331707583,1720673432093,-368.91,0.0001399,2]
[331707584,1720673432102,-368.91,0.0001399,2]
[331707585,1720673432111,-368.91,0.0001399,2]
[331707586,1720673432120,-1121.19703201,0.00013998,2]
[331707587,1720673432129,-207.52871458,0.00013999,2]
[331707588,1720673432139,-414.3864109,0.00013999,2]
[331707589,1720673432148,-25983.1781295,0.00013999,2]
[331707590,1720673432157,-4759.1406637,0.00013999,2]
[331707591,1720673432167,-1872.29255108,0.00013999,2]
[331707592,1720673432179,-1592.96772802,0.00013999,2]
[331707593,1720673432188,-1105.73,0.00013999,2]
[331707594,1720673432197,-442.872,0.00013999,2]
[331707595,1720673432206,-500.0,0.00013999,2]
[331707596,1720673432216,-817.0,0.00013999,2]
[331707597,1720673432225,-653.73,0.00013999,2]
[331707598,1720673432234,-248.0574379,0.00013999,2]
[331707599,1720673432243,-500.0,0.00013999,2]
[331707600,1720673432253,-1071.0,0.00013999,2]
[331707601,1720673432263,-80161.07759134,0.00014,2]
[331707602,1720673432275,-664.57727663,0.00014,2]
[331707637,1720673437577,-785.92464769,0.00013999,2]
[331707639,1720673437588,-782.62207443,0.00013999,2]
[331707645,1720673437633,-3814.34077807,0.00013999,2]
[331707648,1720673437691,-5808.32989986,0.00013999,2]
[331707649,1720673437748,-712.24035346,0.00013999,2]
[331707650,1720673437805,-2833.75534537,0.00013999,2]
[331707651,1720673437817,-167952.42827962,0.00013999,2]
[331707652,1720673437827,-45455.67997223,0.00014,2]
[331707653,1720673437838,-257385.51446476,0.00014,2]
[331707654,1720673437849,-374.94082365,0.00014,2]
[331707655,1720673437861,-1008.16876626,0.00014,2]
[331707656,1720673437921,-3026.48443131,0.00014,2]
[331707695,1720673439844,-3618.57512204,0.00014,2]
[331707696,1720673439860,-1226.66149548,0.00014,2]
[331707697,1720673439871,-1197.8095201,0.00014,2]
[331707698,1720673439882,-583.2607277,0.00014,2]
[331707699,1720673439894,-55545.00000004,0.00014,2]
[331707700,1720673439904,-1751.0,0.00014,2]
[331707701,1720673439928,-1312.16685292,0.00014,2]
[331707702,1720673439940,-495.55389865,0.00014,2]
[331707703,1720673439951,-765.26485898,0.00014,2]
[331707704,1720673439968,-2603.316,0.00014,2]
[331707705,1720673439980,-800.48039531,0.00014,2]
[331707706,1720673439992,-64933.76788165,0.00014,2]
[331707707,1720673440009,-6584.77830081,0.00014,2]
[331707708,1720673440021,-519.73379976,0.00014,2]
[331707709,1720673440032,-4547.08758781,0.00014,2]
[331707710,1720673440044,-3604.54927796,0.00014,2]
[331707746,1720673442874,-290.15122537,0.00014,2]
[331707747,1720673442886,-902.31682698,0.00014,2]
[331707748,1720673442988,-668.06889936,0.00014,2]
[331707749,1720673443045,-11462.42947512,0.00014,2]
[331707750,1720673443056,-2415.26216506,0.00014,2]
[331707751,1720673443101,-929165.45634648,0.00014,2]
[331707752,1720673444553,-20000.39273203,0.00014,2]
[331707753,1720673444564,-489.98199999,0.00014,2]
[331707754,1720673444575,-513.18500005,0.00014,2]
[331707757,1720673445848,-1604.14463227,0.000139,2]
[331707758,1720673445858,-26862.48075262,0.00014,2]
[331707759,1720673445869,-1137.86338,0.00014,2]
[331707760,1720673446188,-11582.6,0.00014,2]
[331707762,1720673649078,354.54,0.00010897,2]
[331707763,1720673669733,1372.07195307,0.00010897,2]
[331707765,1720673892786,175.71287562,0.00010897,2]
[331707766,1720673897600,1105.93757883,0.00011199,2]
[331707767,1720673928668,1143.26398037,0.00011199,2]
[331707768,1720673984863,5251.52280749,0.00011199,2]
[331707769,1720674042985,632.2197077,0.00011199,2]
[331707770,1720674121461,155.98059338,0.00011199,2]
[331707771,1720674141674,22887.74513665,0.00011199,2]
[331707772,1720674149249,157.08305075,0.00011199,2]
[331707773,1720674155225,160.41308448,0.00011199,2]
[331707774,1720674161519,356.42240482,0.00011199,2]
[331707775,1720674173211,155.66471999,0.00011199,2]
[331707776,1720674173832,358.84,0.00010495,2]
[331707777,1720674175848,388.50681923,0.00011199,2]
[331707778,1720674187789,155.30311994,0.00011199,2]
[331707779,1720674200954,267.00267232,0.00011199,2]
[331707780,1720674203217,155.59841267,0.00011199,2]
[331707781,1720674206196,155.0,0.00011199,2]
[331707782,1720674303279,162.93054049,0.00027,120]
[331707783,1720674303887,1302.86269743,0.00011199,2]
[331707784,1720674349765,347.22587627,0.00011199,2]
[331707785,1720674356133,370.00600628,0.00011199,2]
[331707786,1720674380019,533.90157478,0.00011199,2]
[331707799,1720674414260,2991.5819992,0.00011973,2]
[331707800,1720674424195,322.3178481,0.00011199,2]
[331707801,1720674429635,260.89225435,0.00011199,2]
[331707805,1720674471455,176.50798641,0.00011199,2]
[331707806,1720674554741,3107.94822691,0.00011199,2]
[331707807,1720674560747,445.30143948,0.00011199,2]
[331707811,1720674631780,-159.09090106,0.00012073,2]
[331707812,1720674631790,-272.90910294,0.00012173,2]
[331707813,1720674631804,-748.65194149,0.00012173,2]
[331707814,1720674631816,-2722.04110642,0.00012173,2]
[331707815,1720674631840,-472.14322502,0.00012173,2]
[331707816,1720674631851,-455.85444,0.00012173,2]
[331707817,1720674631863,-306.20467746,0.00012173,2]
[331707818,1720674631900,-6912.10070667,0.00012173,2]
[331707819,1720674631909,-201.7130477,0.00012173,2]
[331707820,1720674631919,-150.0,0.00012279,2]
[331707821,1720674631928,-7241.38649819,0.0001228,2]
[331707822,1720674631939,-3255.09037,0.0001228,2]
[331707823,1720674631950,-298.96499867,0.0001228,2]
[331707824,1720674631961,-2559.38,0.0001228,2]
[331707825,1720674631972,-4475.52028849,0.0001228,2]
[331707826,1720674631984,-2697.05711625,0.0001228,2]
[331707827,1720674631997,-389.84087267,0.0001228,2]
[331707828,1720674632009,-335.08950845,0.0001228,2]
[331707829,1720674632020,-276.52,0.0001228,2]
[331707830,1720674632036,-2361.15034728,0.0001228,2]
[331707831,1720674632046,-637.06,0.00012305,2]
[331707832,1720674632056,-2051.56,0.00012344,2]
[331707833,1720674632066,-456.85519967,0.0001235,2]
[331707834,1720674632078,-543.14480033,0.0001235,2]
[331707835,1720674632087,-182.64,0.00012382,2]
[331707836,1720674632097,-150.99,0.00012382,2]
[331707837,1720674632106,-250.0,0.00012412,2]
[331707838,1720674632116,-250.0,0.0001243,2]
[331707839,1720674632125,-151.91,0.00012523,2]
[331707840,1720674632134,-1665.06,0.00012523,2]
[331707841,1720674632143,-571.53,0.00012523,2]
[331707842,1720674632152,-151.91,0.00012653,2]
[331707843,1720674632162,-179.99,0.00012694,2]
[331707844,1720674632172,-358.84,0.00012758,2]
[331707845,1720674632182,-151.91,0.00012784,2]
[331707846,1720674632193,-151.91,0.00012914,2]
[331707848,1720674632203,-1250.0,0.00013,2]
[331707850,1720674632213,-151.91,0.00013045,2]
[331707851,1720674632222,-371.02794291,0.00013128,2]
[331707852,1720674632231,-151.91,0.00013175,2]
[331707853,1720674632240,-255.0,0.00013372,2]
[331707854,1720674632249,-2204.3952077,0.00013448,2]
[331707855,1720674632261,-6455.6047923,0.00013448,2]
[331707856,1720674632272,-181.48,0.00013529,2]
[331707857,1720674632281,-9431.98960081,0.00013574,2]
[331707858,1720674632290,-228.41,0.00013699,2]
[331707859,1720674632299,-248.73467718,0.00013699,2]
[331707862,1720674632310,-1.26532282,0.00013699,2]
[331707863,1720674632319,-193.70467525,0.00013748,2]
[331707865,1720674632329,-516.75882327,0.00013788,2]
[331707867,1720674632340,-690.66087673,0.00013788,2]
[331707870,1720674632349,-482.425,0.00013796,2]
[331707873,1720674632359,-74357.6577,0.000138,2]
[331707875,1720674632370,-200.0,0.00013888,2]
[331707877,1720674632379,-627.04,0.00013889,3]
[331707879,1720674632390,-530.51441153,0.00013889,2]
[331707881,1720674632400,-158.91736033,0.00013889,2]
[331707883,1720674632409,-1000.0,0.00013894,2]
[331707885,1720674632418,-1059.65,0.00013899,2]
[331707887,1720674632429,-504.23385468,0.00013899,2]
[331707889,1720674632439,-500.0,0.00013899,2]
[331707890,1720674632449,-782.96,0.00013899,2]
[331707891,1720674632459,-626.49,0.00013899,2]
[331707892,1720674632468,-607.04794463,0.00013899,2]
[331707893,1720674632478,-27042.89442627,0.000139,2]
[331707894,1720674633444,-710.66048261,0.000139,2]
[331707895,1720674633455,-337.01913656,0.000139,2]
[331707896,1720674633468,-299.6900001,0.000139,2]
[331707900,1720674637795,-418.69423691,0.00013899,2]
[331707901,1720674637805,-5017.64216732,0.000139,2]
[331707902,1720674637818,-251.9475,0.000139,2]
[331707903,1720674637831,-1662.12038026,0.000139,2]
[331707904,1720674637843,-399.08923112,0.000139,2]
[331707905,1720674637960,-2641.66657084,0.000139,2]
[331707906,1720674638134,-1131.55640492,0.000139,2]
[331707907,1720674638145,-5242.17139244,0.000139,2]
[331707956,1720674639944,-499.9996419,0.000139,2]
[331707964,1720674640004,-409.15439696,0.000139,2]
[331707966,1720674640016,-28700.7682687,0.000139,2]
[331707968,1720674640025,-184.0405,0.000139,2]
[331707970,1720674640036,-2242.6113,0.000139,2]
[331707972,1720674640045,-180.9266,0.000139,2]
[331707974,1720674640054,-287.8321,0.000139,2]
[331707976,1720674640063,-28678.0393,0.000139,2]
[331707978,1720674640073,-327.8808,0.000139,2]
[331707980,1720674640082,-7500.0,0.000139,2]
[331707981,1720674640091,-175.69337071,0.000139,2]
[331707982,1720674640101,-150.0,0.000139,2]
[331707983,1720674640110,-163.86089958,0.000139,2]
[331707984,1720674640120,-326.21886683,0.000139,2]
[331707985,1720674640129,-182.64,0.0001393,2]
[331707986,1720674640139,-3615.36594908,0.0001395,3]
[331707987,1720674640148,-1059.65,0.00013954,2]
[331707988,1720674640158,-500.0,0.00013954,2]
[331707989,1720674640167,-782.96,0.00013954,2]
[331707990,1720674640176,-626.49,0.00013954,2]
[331707991,1720674640186,-594.0,0.0001397,2]
[331707992,1720674640195,-1017.0,0.0001398,2]
[331707993,1720674640204,-1000.0,0.0001398,2]
[331707994,1720674640214,-155.82472029,0.00013989,2]
[331707995,1720674640223,-196.61750891,0.00013989,2]
[331707996,1720674640233,-1000.0,0.0001399,2]
[331707997,1720674640243,-1000.0,0.0001399,2]
[331707998,1720674640252,-1000.0,0.0001399,2]
[331707999,1720674640261,-1241.0,0.0001399,2]
[331708000,1720674640271,-472.24534461,0.0001399,3]
[331708001,1720674640284,-527.75465539,0.0001399,3]
[331708002,1720674640292,-1000.0,0.0001399,3]
[331708003,1720674640301,-1000.0,0.0001399,3]
[331708004,1720674640310,-1000.0,0.0001399,3]
[331708005,1720674640320,-5436.26185265,0.00013998,2]
[331708006,1720674640332,-307.2591819,0.00013998,2]
[331708007,1720674640344,-423.23320021,0.00013998,2]